Cogmind - Beta 15 @@@ ROGUE MODE // 2025.05.30 @ 00:15:42 Player: Sen Result: Destroyed by 28-Q8D(R) with Subdweller Shrapnel Launcher Performance ------------- Evolutions (0) 0 Regions Visited (1) 200 Robots Destroyed (9) 45 Value Destroyed (234) 234 Prototype IDs (0) 0 Alien Tech Used (0) 0 Bonus (0) 0 TOTAL SCORE: 479 Bonus ------- None Cogmind --------- Core Integrity 0/250 Matter 300/300 Energy 100/100 System Corruption 0% Temperature Cool (0) Movement Core (350) Ox6 Location -10/Materials Parts ------- > --- POWER (1) -------- (None) > --- PROPULSION (2) --- (None) > --- UTILITY (2) ------ Large Storage Unit > --- WEAPON (2) ------- Light Assault Rifle > --- INVENTORY (15) --- Ion Engine Aluminum Leg Aluminum Leg Peak State ------------ > --- POWER ------------ Ion Engine > --- PROPULSION ------- Aluminum Leg Aluminum Leg > --- UTILITY ---------- Large Storage Unit Weapon Shielding > --- WEAPON ----------- Small Laser Light Assault Rifle > --- INVENTORY -------- Ion Engine Aluminum Leg Aluminum Leg [Rating: 7] Favorites ----------- Power Ion Engine Engine Ion Engine Propulsion Aluminum Leg Leg Aluminum Leg Wheel Wheel Flight Unit Flight Unit Utility Weapon Shielding Storage Large Storage Unit Protection Weapon Shielding Weapon Small Laser Energy Gun Small Laser Ballistic Gun Light Assault Rifle Build | -11 -10 ------- Run | Yrd Mat Slots Evolved . | . . Power . | . . Propulsion . | . . Utility . | . . Weapon . | . . Parts Attached 18 | 7 11 Power 3 | 1 2 Engine 3 | 1 2 Core . | . . Reactor . | . . Propulsion 7 | 2 5 Treads . | . . Leg 3 | . 3 Wheel 2 | 2 . Hover . | . . Flight 2 | . 2 Utility 2 | . 2 Device . | . . Storage 1 | . 1 Processor . | . . Hackware . | . . Protection 1 | . 1 Artifact . | . . Weapon 6 | 4 2 Energy Gun 5 | 4 1 Energy Cannon . | . . Ballistic Gun 1 | . 1 Ballistic Cannon . | . . Launcher . | . . Special Weapon . | . . Impact Weapon . | . . Slashing Weapon . | . . Piercing Weapon . | . . Special Melee Weapon . | . . Unidentified Prototypes . | . . Parts Lost 11 | . 11 Power 2 | . 2 Propulsion 5 | . 5 Utility 1 | . 1 Weapon 3 | . 3 Highest Loss Streak 5 | . 5 To Critical Strikes . | . . Average Backups 2 | 1 2 Power . | . . Propulsion 1 | 1 1 Utility . | . . Weapon . | . . Tool/Special . | . . Unused Backups 6 | . 6 Power 2 | . 2 Propulsion 3 | . 3 Utility 1 | . 1 Weapon . | . . Tool/Special . | . . Average Slot Usage (%) 83 | . 83 Engine 12 | . 12 Leg 16 | . 16 Wheel 3 | . 3 Flight 6 | . 6 Storage 6 | . 6 Protection 11 | . 11 Energy Gun 17 | . 17 Ballistic Gun 8 | . 8 Peak Build Rating 7 | 5 7 Average Rating 5 | 3 5 On Entrance 2 | . 5 Naked Turns . | . . Heaviest Build 28 | 6 28 Greatest Support 20 | 20 20 Greatest Overweight (x) 7 | . 7 Average Overweight (x) . | . . Largest Inventory Capacity 15 | 5 15 Average Capacity 8 | 5 9 Most Carried 5 | 4 5 Average Carried 2 | 1 2 Final Capacity 15 | 5 15 Final Carried 3 | 3 3 Class Distribution -------------------- 63% | Scavenger-Mutant 36% | Mutant Dominant Class ---------------- Scavenger-Mutant | -10/Materials Resources | -11 -10 ----------- Run | Yrd Mat Matter Collected 409 | 280 129 Remotely . | . . Salvage Created 293 | 50 243 Parts 21 | 1 20 Haulers Intercepted . | . . Recyclers Shooed . | . . Parts Field Recycled . | . . Retrieved Matter . | . . Parts Self-Destructed . | . . Prevented . | . . Kills | -11 -10 ------- Run | Yrd Mat Combat Hostiles Destroyed 9 | 1 8 Guns 9 | 1 8 Classes Destroyed 2 | 1 1 Swarmer 3 | . 3 Grunt 6 | 1 5 Best Kill Streak 3 | 1 3 Combat Bots Only 3 | 1 3 Max Kills in Single Turn 1 | 1 1 Gunslinging . | . . Exploded . | . . Melee . | . . Uniques/NPCs Destroyed . | . . Combat | -11 -10 -------- Run | Yrd Mat Hostile Shots Fired 86 | 5 81 Missed 18 | . 18 Hits 68 | 5 63 Projectile 68 | 5 63 AOE 5 | . 5 Damage Taken 998 | 55 943 Core 259 | 11 248 Absorbed by Shields . | . . Redirected to Shielding 56 | . 56 Core Remaining (%) 95 | 95 . Volleys Fired 43 | 4 39 Largest 2 | 2 2 Hottest 80 | 80 80 Shots Fired 70 | 8 62 Gun 70 | 8 62 Cannon . | . . Launcher . | . . Special . | . . Kinetic 24 | . 24 Thermal 46 | 8 38 Explosive . | . . Electromagnetic . | . . Robot Hit Streak 14 | 2 14 Robot Miss Streak 5 | 3 5 Penetration Max . | . . Secondary Targets 1 | . 1 Max Gunslinging Chain 1 | . 1 Shots Hit Robots 42 | 4 38 Core Hits 17 | 2 15 Critical Kills . | . . Critical Parts Destroyed . | . . Critical Strikes . | . . Melee Attacks . | . . Impact . | . . Slashing . | . . Piercing . | . . Sneak Attacks . | . . Combat Hostiles . | . . Follow-up Attacks . | . . Damage Inflicted 409 | 44 365 Guns 409 | 44 365 Cannons . | . . Explosions . | . . Melee . | . . Ramming . | . . Kinetic 137 | . 137 Thermal 272 | 44 228 Explosive . | . . Electromagnetic . | . . Impact . | . . Slashing . | . . Piercing . | . . Highest Corruption . | . . Average Corruption . | . . Corruption Purged . | . . Corruption Blocked . | . . Overload Shots . | . . Overflow Damage . | . . Projectiles . | . . Explosions . | . . Melee . | . . Knockbacks . | . . Impact . | . . Kinetic . | . . Secondary . | . . Self-Inflicted Damage . | . . Shots . | . . Rammed . | . . Targets Rammed . | . . Kicked . | . . Crushed . | . . Highest Temperature 102 | 102 82 Average Temperature 31 | 55 27 Received Heat Transfer 270 | 30 240 Siege Activations . | . . Martial Activations . | . . Shielding Activations . | . . Robots Disrupted . | . . Combat Hostiles . | . . Robots Corrupted . | . . Combat Hostiles . | . . Parts Fried . | . . Impact Corruptions . | . . Robots Melted . | . . Combat Hostiles . | . . Parts Melted 1 | 1 . Heat Transferred 625 | 100 525 Parts Sabotaged . | . . Parts Stolen . | . . Parts Stripped . | . . Power Chain Reactions . | . . Alert | -11 -10 ------- Run | Yrd Mat Maximum Alert Level . | . . Low Security (%) 100 | 100 100 Level 1 . | . . Level 2 . | . . Level 3 . | . . Level 4 . | . . Level 5 . | . . High Security . | . . Max Security . | . . Peak Influence 60 | 10 60 Initial . | . . Average 11 | 1 14 Influence Increases 215 | 20 195 Destroy 0b10 Robot/C 180 | 20 160 Destroy Leader 30 | . 30 Successful Hack 5 | . 5 Influence Decreases 215 | 20 195 Time Decay 170 | 20 150 Lost Part 45 | . 45 Squads Dispatched 3 | . 3 Investigation 1 | . 1 Extermination . | . . Reinforcement 2 | . 2 Assault . | . . Garrison . | . . Intercept . | . . Searches Triggered . | . . Construction Impeded . | . . Haulers Reinforced . | . . Active Scanning Responses . | . . Cargo Convoy Interrupts . | . . Stealth | -11 -10 --------- Run | Yrd Mat Distress Signals 1 | . 1 Communications Jammed . | . . Distress Signals . | . . Times Spotted 20 | 1 19 Peak Tracking Total 5 | 1 5 Tactical Retreats . | . . Traps | -11 -10 ------- Run | Yrd Mat Traps Triggered . | . . Indirectly . | . . Trap Hack Attempts . | . . Triggered . | . . Disarmed . | . . Reprogrammed . | . . Reused . | . . Traps Extracted . | . . Installed . | . . Triggered . | . . Machines | -11 -10 ---------- Run | Yrd Mat Machines Disabled . | . . Max in Single Turn . | . . Machines Repaired . | . . Machines Dismantled . | . . Machines Sabotaged . | . . Overloaded Fab Kills . | . . Hacking | -11 -10 --------- Run | Yrd Mat Machines Accessed 3 | . 3 Terminals 2 | . 2 Fabricators . | . . Repair Stations . | . . Recycling Units 1 | . 1 Scanalyzers . | . . Garrison Access . | . . Total Hacks 10 | . 10 Successful 8 | . 8 Failed 2 | . 2 Catastrophic . | . . Database Lockouts . | . . Manual . | . . Terminals 5 | . 5 Fabricators . | . . Repair Stations . | . . Recycling Units 5 | . 5 Scanalyzers . | . . Garrison Access . | . . Terminal Hacks 3 | . 3 Alert Level 1 | . 1 Dispatch Records 1 | . 1 Transport Status 1 | . 1 Fabricator Hacks . | . . Repair Station Hacks . | . . Recycling Unit Hacks 5 | . 5 Recycle Component 1 | . 1 Process 3 | . 3 Retrieve Components 1 | . 1 Scanalyzer . | . . Garrison Access Hacks . | . . Unauthorized Hacks . | . . Terminals . | . . Fabricators . | . . Repair Stations . | . . Recycling Units . | . . Scanalyzers . | . . Garrison Access . | . . Data Cores Recovered . | . . Used . | . . Hacking Detections 2 | . 2 Full Trace Events 1 | . 1 Feedback Events . | . . Feedback Blocked . | . . Robot Schematics Acquired . | . . Robots Built . | . . Authchips . | . . Time . | . . Total Robot Build Rating . | . . Part Schematics Acquired . | . . Parts Built . | . . Authchips . | . . Time . | . . Total Part Build Rating . | . . Parts Repaired . | . . Time . | . . Parts Recycled 1 | . 1 Recycled Matter 41 | . 41 Retrieved Matter . | . . Retrieved Components . | . . Parts Scanalyzed . | . . Part Schematics Acquired . | . . Parts Damaged . | . . Bothacking | -11 -10 ------------ Run | Yrd Mat Used RIF Installer . | . . Robots Hacked . | . . Non-combat . | . . Combat . | . . Robot Hacks Applied . | . . Relay Couplers Released . | . . Fabnet Peak Effective % . | . . Robots Rewired . | . . Allies Hacked . | . . Hacks Repelled . | . . Allies | -11 -10 -------- Run | Yrd Mat Total Allies . | . . Largest Group . | . . Highest-Rated Group . | . . Highest-Rated Ally . | . . Total Orders . | . . Ally Attacks . | . . Total Damage . | . . Kills . | . . Allies Corrupted . | . . Allies Melted . | . . Intel | -11 -10 ------- Run | Yrd Mat Active Infowar (turns) . | . . Robot Analysis Total . | . . Derelict Logs Recovered . | . . Drone Launches . | . . Drone Recoveries . | . . Exploration | -11 -10 ------------- Run | Yrd Mat Turns Passed 718 | 173 545 Spaces Moved 586 | 203 383 Core 97 | 90 7 Treads . | . . Legs 172 | . 172 Wheels 161 | 113 48 Hover . | . . Flight 156 | . 156 Fastest Speed 37 | 50 37 Average Speed 90 | 66 103 Slowest Speed 400 | 80 400 Overloaded Moves . | . . Propulsion Burnouts . | . . Robots Hopped 2 | . 2 Potential Cave-ins . | . . Cave-ins Triggered . | . . Exploration Rate (%) 29 | 6 52 Regions Visited 1 Branch Regions . Pre-discovered Areas . | . . Known Exits Taken . | . . Unknown Exits Taken 1 | 1 . Scrap Searched . | . . Spaces Dug . | . . Terrain Destroyed . | . . Melee . | . . Projectile . | . . AOE . | . . Terrain Rammed . | . . Walls Destroyed . | . . Machines Disabled . | . . Actions | -11 -10 --------- Run | Yrd Mat Total 707 | 231 476 Wait 30 | 8 22 Move 581 | 202 379 Hop 2 | . 2 Pick Up 11 | 3 8 Fast Attach 17 | 8 9 Attach 3 | . 3 Detach 5 | 3 2 Swap 2 | . 2 Drop 13 | 3 10 Fire 43 | 4 39 Melee . | . . Ram . | . . Kick . | . . Crush . | . . Escape Stasis . | . . Rewire . | . . Trap . | . . Miscellaneous . | . . Route ------- -11/Scrapyard -10/Materials (discovered 2 exits: [*Mat] / [*Min]) History --------- Turn | Location | Event 2 | -11/Scrapyard | Met Revision 17 125 | -11/Scrapyard | Discovered new exit (range 8) 174 | -11/Scrapyard | Entered Materials 277 | -10/Materials | Discovered new exit (range 16) 366 | -10/Materials | Lost 3 parts (1p1n1w) 392 | -10/Materials | Core integrity fell below 50% 416 | -10/Materials | Lost 3 parts (2n1w) 674 | -10/Materials | Derelicts attacked the area 693 | -10/Materials | Discovered new exit (range 15) 702 | -10/Materials | Build established: Scavenger-Mutant 704 | -10/Materials | Core integrity fell below 20% 719 | -10/Materials | Destroyed by 28-Q8D(R) with Subdweller Shrapnel Launcher Last Messages --------------- 00637_ K-01 Serf collects debris. 00674_ ALERT: Derelict incursion detected, rerouting patrols to target area. 00693_ EXIT=FOUND 00696_ Atomic Centrifuge disabled. 00699_ K-01 Serf cleans the Material Processor. 00701_ Aluminum Leg destroyed. 00703_ Ion Engine destroyed. 00705_ K-01 Serf collects debris. 00706_ Weapon Shielding destroyed. 00708_ U-05 Engineer lays Concrete. 00708_ Aluminum Leg destroyed. 00709_ U-05 Engineer lays Concrete. 00711_ K-01 Serf collects debris. 00711_ U-05 Engineer builds a Wall. 00714_ K-01 Serf collects debris. 00715_ U-05 Engineer builds a Wall. 00715_ Sml. Laser destroyed. 00718_ K-01 Serf collects debris. 00719_ U-05 Engineer lays Concrete. Map ----- +----------------------------------------------------+ | # # # # | | # # %+= # | | ########+# #* # | | ######## ###+########### # # | | ## # # # | | + """ """ # # # | | ## """ """ # # # | | ## """ """ # # # | | """ ## """ """ # ######## | | ^ """"" ## """ """ # #??????? | | """"" ## # #??????? | | """"" #######+###### #? ???? | | ? """ Rw # ???? | | ? ! # ????? | | ? "" k%*!%= ?? | | ???? ""R # * ??? | | ???? u "" ##??????? | | ?????########### R #???????? | | ?????????????# #???????? | | ?????????????# ;##?????? | | ?????????????# ! ; #?????? | | ?????????????# ; #?????? | | ?????????????## *** ; #?????? | | ??????????????# *** ;;###???? | | ??????????????## *** #???? | | ???????????????#; @ < #???? | | ???????????????## #???? | | ????????????????#################???? | | ????????????????????????????????????? | | ????????????????????????????????????? | | ????????????????????????????????????? | | | | | | | | | | | | | | | | | | | | | | | | | | | | | | | | | | | | | | | +----------------------------------------------------+ Best States ------------- Heat Dissipation 25 Energy Generation 10 Energy Capacity 250 Matter Stores 300 Matter Capacity 300 Sight Range 16 Terrain Scan Density 10 Weapon Shielding 33 Evasion (%) 62 Item Schematics ----------------- None Robot Schematics ------------------ None Fabricated ------------ Nothing Repaired ---------- Nothing Alien Tech Used ----------------- None Achievements -------------- None Challenges ------------ None Game ------ Seed ActiveAmuletScreen Manual? 0 Play Time 00:45:04 Cumulative 23.7 hours Start 2025.05.29 @ 23:17:34 End 2025.05.30 @ 00:15:42 Sessions 1 Manual Loads 0 Difficulty Rogue Special Mode None Game No. 27 Rogue 27 Adventurer 0 Explorer 0 Win Type - Total 0 Types 0/0/0/0/0/0/0/0/0/0 Lore% 12 Gallery% 24 Achievement% 23 Wizard Run 0 Options --------- Layout 1 ASCII 1 Keyboard 0 Movement Numpad Keybinds 0 Fullscreen 1 Font 24/Smallcaps Map View 50x35 Zoom Use 17% Tactical HUD 1 Map Filters NONE Filters NONE Steam 1 RUN: 0fe7e653-fa7e-4cfd-9aa3-7f2b77d2d804